[Event "Early-Titled-Tuesday-Blitz-September-05-2023"]
[Site "Chess.com"]
[Date "2023.09.05"]
[Round "11"]
[White "Sargsyan_Shant"]
[Black "Firouzja2003"]
[Result "0-1"]
[WhiteElo "2963"]
[BlackElo "3116"]
[TimeControl "180+1"]
[EndTime "10:05:20 PDT"]
[Termination "Firouzja2003 won by resignation"]

1. c4 {[%clk 0:03:00.9]} 1... g6 {[%clk 0:02:56.1]} 2. g3 {[%clk 0:03:01.1]}
2... Bg7 {[%clk 0:02:56.8]} 3. Bg2 {[%clk 0:03:01.7]} 3... c6 {[%clk 0:02:57.6]}
4. Nc3 {[%clk 0:03:01.3]} 4... d5 {[%clk 0:02:58.3]} 5. cxd5 {[%clk 0:02:58.1]}
5... cxd5 {[%clk 0:02:58.1]} 6. Nxd5 {[%clk 0:02:58.7]} 6... Nc6 {[%clk
0:02:58.1]} 7. Nc3 {[%clk 0:02:57.4]} 7... Bf5 {[%clk 0:02:57.2]} 8. d3 {[%clk
0:02:57.3]} 8... Rc8 {[%clk 0:02:55.6]} 9. Nf3 {[%clk 0:02:57.3]} 9... Nf6
{[%clk 0:02:55.9]} 10. O-O {[%clk 0:02:57.3]} 10... O-O {[%clk 0:02:56.6]} 11.
Bd2 {[%clk 0:02:56.6]} 11... a6 {[%clk 0:02:56.9]} 12. Rc1 {[%clk 0:02:56.6]}
12... b5 {[%clk 0:02:57.2]} 13. a3 {[%clk 0:02:48.5]} 13... Na5 {[%clk
0:02:54.3]} 14. Ne5 {[%clk 0:02:32.6]} 14... Be6 {[%clk 0:02:41]} 15. e3 {[%clk
0:02:07.8]} 15... Nb3 {[%clk 0:02:37]} 16. Rc2 {[%clk 0:02:07.6]} 16... Ng4
{[%clk 0:02:23.9]} 17. Nxg4 {[%clk 0:01:58.7]} 17... Qxd3 {[%clk 0:02:23.3]} 18.
f3 {[%clk 0:01:25.2]} 18... Na1 {[%clk 0:01:59]} 19. Rc1 {[%clk 0:01:12.9]}
19... Nb3 {[%clk 0:01:59.3]} 20. Rc2 {[%clk 0:01:13.1]} 20... Na1 {[%clk
0:01:59.1]} 21. Qxa1 {[%clk 0:01:04.6]} 21... Qxc2 {[%clk 0:01:58.8]} 22. Qc1
{[%clk 0:01:05.2]} 22... Qb3 {[%clk 0:01:54.7]} 23. Nf2 {[%clk 0:01:05.3]} 23...
a5 {[%clk 0:01:53.9]} 24. Qb1 {[%clk 0:01:01.3]} 24... Rfd8 {[%clk 0:01:49.2]}
25. Nce4 {[%clk 0:00:59.2]} 25... b4 {[%clk 0:01:46.5]} 26. axb4 {[%clk
0:00:59.1]} 26... axb4 {[%clk 0:01:47.4]} 27. Rc1 {[%clk 0:00:35.5]} 27... f5
{[%clk 0:01:45.3]} 28. Rxc8 {[%clk 0:00:23.7]} 28... Rxc8 {[%clk 0:01:23.6]} 29.
Ng5 {[%clk 0:00:23.6]} 29... Rc2 {[%clk 0:01:15.8]} 30. Nxe6 {[%clk 0:00:12.4]}
30... Rxd2 {[%clk 0:01:16]} 31. Nc5 {[%clk 0:00:12.1]} 31... Qxe3 {[%clk
0:01:16.1]} 32. Qa2+ {[%clk 0:00:09.4]} 32... e6 {[%clk 0:01:03.4]} 33. Qxe6+
{[%clk 0:00:05]} 33... Qxe6 {[%clk 0:01:04]} 34. Nxe6 {[%clk 0:00:05.9]} 34...
Bxb2 {[%clk 0:01:03.6]} 35. Bf1 {[%clk 0:00:06.5]} 35... Bd4 {[%clk 0:00:54.5]}
36. Nxd4 {[%clk 0:00:06.2]} 36... Rxd4 {[%clk 0:00:55.4]} 37. Nd3 {[%clk
0:00:06.7]} 37... b3 {[%clk 0:00:55.2]} 38. Kf2 {[%clk 0:00:06.6]} 38... Rc4
{[%clk 0:00:55.1]} 39. Ke3 {[%clk 0:00:04.7]} 39... Rc2 {[%clk 0:00:55.8]} 40.
Nb4 {[%clk 0:00:03]} 40... b2 {[%clk 0:00:56.5]} 41. Nxc2 {[%clk 0:00:03.1]}
41... b1=Q {[%clk 0:00:56.7]} 42. Bc4+ {[%clk 0:00:01.9]} 42... Kg7 {[%clk
0:00:56.9]} 43. Nd4 {[%clk 0:00:01.3]} 43... Qg1+ {[%clk 0:00:56.8]} 44. Kd3
{[%clk 0:00:01.5]} 44... Qxh2 {[%clk 0:00:57.5]} 45. Ne2 {[%clk 0:00:01.9]}
45... Kf6 {[%clk 0:00:57.8]} 46. f4 {[%clk 0:00:02.1]} 46... h6 {[%clk
0:00:57.4]} 47. Bd5 {[%clk 0:00:02.8]} 47... g5 {[%clk 0:00:57.9]} 48. fxg5+
{[%clk 0:00:03.7]} 48... hxg5 {[%clk 0:00:58.8]} 49. Bf3 {[%clk 0:00:04]} 49...
Ke5 {[%clk 0:00:59.3]} 50. Ke3 {[%clk 0:00:03.8]} 50... g4 {[%clk 0:00:59.7]}
51. Bc6 {[%clk 0:00:03.6]} 51... Qh6+ {[%clk 0:01:00.3]} 0-1

[Event "Early-Titled-Tuesday-Blitz-September-05-2023"]
[Site "Chess.com"]
[Date "2023.09.05"]
[Round "11"]
[White "Journey_to_GrandMaster_YT"]
[Black "Grossboss19"]
[Result "1-0"]
[WhiteElo "2625"]
[BlackElo "2500"]
[TimeControl "180+1"]
[EndTime "10:05:20 PDT"]
[Termination "Journey_to_GrandMaster_YT won by resignation"]

1. d4 {[%clk 0:03:00]} 1... Nf6 {[%clk 0:02:55.9]} 2. Nf3 {[%clk 0:03:00.4]}
2... e6 {[%clk 0:02:55.8]} 3. c4 {[%clk 0:03:00.3]} 3... d5 {[%clk 0:02:55.8]}
4. Nc3 {[%clk 0:03:00.4]} 4... a6 {[%clk 0:02:53.4]} 5. cxd5 {[%clk 0:02:58.6]}
5... exd5 {[%clk 0:02:53]} 6. Bg5 {[%clk 0:02:59.3]} 6... Be6 {[%clk 0:02:53.1]}
7. e3 {[%clk 0:02:59.4]} 7... Nbd7 {[%clk 0:02:49.9]} 8. Bd3 {[%clk 0:02:59.8]}
8... Bd6 {[%clk 0:02:48.4]} 9. O-O {[%clk 0:02:59.5]} 9... h6 {[%clk 0:02:46.9]}
10. Bh4 {[%clk 0:02:59.2]} 10... O-O {[%clk 0:02:44.6]} 11. Rc1 {[%clk
0:02:57.8]} 11... b5 {[%clk 0:02:42.6]} 12. e4 {[%clk 0:02:54.2]} 12... dxe4
{[%clk 0:02:37.9]} 13. Nxe4 {[%clk 0:02:54.4]} 13... Be7 {[%clk 0:02:38]} 14.
Nc5 {[%clk 0:02:54.3]} 14... Nxc5 {[%clk 0:02:32.3]} 15. dxc5 {[%clk 0:02:53.9]}
15... c6 {[%clk 0:02:23.3]} 16. a3 {[%clk 0:02:39.1]} 16... Bd5 {[%clk
0:02:13.5]} 17. Re1 {[%clk 0:02:34.2]} 17... Re8 {[%clk 0:02:00.6]} 18. Nd4
{[%clk 0:02:29.5]} 18... Qd7 {[%clk 0:01:41.3]} 19. Nf5 {[%clk 0:01:58.4]} 19...
Rad8 {[%clk 0:01:36.9]} 20. Rxe7 {[%clk 0:01:39.3]} 20... Rxe7 {[%clk
0:01:26.4]} 21. Bxf6 {[%clk 0:01:39.4]} 21... Be6 {[%clk 0:00:54.3]} 22. Bxe7
{[%clk 0:01:20.1]} 22... Re8 {[%clk 0:00:48.2]} 23. Bd6 {[%clk 0:01:12.9]} 23...
Bxf5 {[%clk 0:00:43.7]} 24. Bxf5 {[%clk 0:01:11.6]} 24... Qxf5 {[%clk
0:00:44.6]} 25. h3 {[%clk 0:01:03.1]} 25... Qf6 {[%clk 0:00:40.5]} 26. Qd2
{[%clk 0:01:00]} 26... Qe6 {[%clk 0:00:27]} 27. b4 {[%clk 0:00:58.5]} 27... f6
{[%clk 0:00:20.5]} 28. Rc3 {[%clk 0:00:55.4]} 28... Qf5 {[%clk 0:00:16.9]} 29.
Re3 {[%clk 0:00:53.7]} 29... Rxe3 {[%clk 0:00:14.9]} 30. Qxe3 {[%clk 0:00:53.6]}
30... Kh7 {[%clk 0:00:14.2]} 31. f3 {[%clk 0:00:52.9]} 31... Qb1+ {[%clk
0:00:13.7]} 32. Kh2 {[%clk 0:00:53]} 32... Kg6 {[%clk 0:00:13.6]} 33. Qe4+
{[%clk 0:00:53]} 33... Qxe4 {[%clk 0:00:13.8]} 34. fxe4 {[%clk 0:00:53.9]} 34...
f5 {[%clk 0:00:14.3]} 35. Kg3 {[%clk 0:00:47.8]} 35... fxe4 {[%clk 0:00:12.5]}
36. Kf4 {[%clk 0:00:48]} 36... e3 {[%clk 0:00:13.2]} 37. Kxe3 {[%clk 0:00:48.2]}
37... Kf5 {[%clk 0:00:13.8]} 38. g4+ {[%clk 0:00:48]} 38... Ke6 {[%clk
0:00:11.7]} 39. Ke4 {[%clk 0:00:46.9]} 39... g6 {[%clk 0:00:11.7]} 40. h4 {[%clk
0:00:45.7]} 40... h5 {[%clk 0:00:09.3]} 41. g5 {[%clk 0:00:42.8]} 41... Kf7
{[%clk 0:00:08.2]} 42. Ke5 {[%clk 0:00:42.6]} 1-0

[Event "Early-Titled-Tuesday-Blitz-September-05-2023"]
[Site "Chess.com"]
[Date "2023.09.05"]
[Round "11"]
[White "Anton_Demchenko"]
[Black "OparinGrigoriy"]
[Result "0-1"]
[WhiteElo "2959"]
[BlackElo "3021"]
[TimeControl "180+1"]
[EndTime "10:05:22 PDT"]
[Termination "OparinGrigoriy won by checkmate"]

1. e4 {[%clk 0:03:00.9]} 1... e5 {[%clk 0:03:00.6]} 2. Nf3 {[%clk 0:03:00.8]}
2... Nc6 {[%clk 0:03:01.2]} 3. Bc4 {[%clk 0:03:01]} 3... Nf6 {[%clk 0:03:01.6]}
4. d3 {[%clk 0:03:01.7]} 4... h6 {[%clk 0:03:01.9]} 5. a4 {[%clk 0:02:58.7]}
5... Bc5 {[%clk 0:02:53.5]} 6. O-O {[%clk 0:02:54.8]} 6... O-O {[%clk
0:02:50.7]} 7. Be3 {[%clk 0:02:48.5]} 7... Bxe3 {[%clk 0:02:44.6]} 8. fxe3
{[%clk 0:02:49.4]} 8... d6 {[%clk 0:02:44.5]} 9. Nbd2 {[%clk 0:02:42.7]} 9...
Be6 {[%clk 0:02:43.6]} 10. Bxe6 {[%clk 0:02:42.6]} 10... fxe6 {[%clk 0:02:43.6]}
11. c3 {[%clk 0:02:43.5]} 11... d5 {[%clk 0:02:39.4]} 12. h3 {[%clk 0:02:40.9]}
12... Qd6 {[%clk 0:02:38.8]} 13. Qb3 {[%clk 0:02:39.8]} 13... b6 {[%clk
0:02:37.8]} 14. Rf2 {[%clk 0:02:39.3]} 14... Rf7 {[%clk 0:02:37]} 15. Raf1
{[%clk 0:02:39.5]} 15... Raf8 {[%clk 0:02:37.6]} 16. Qc2 {[%clk 0:02:33.9]}
16... a5 {[%clk 0:02:25.8]} 17. d4 {[%clk 0:02:24.6]} 17... Nh5 {[%clk
0:02:01.8]} 18. exd5 {[%clk 0:01:38.7]} 18... exd5 {[%clk 0:02:02.7]} 19. Nxe5
{[%clk 0:01:05.4]} 19... Rxf2 {[%clk 0:02:02.5]} 20. Rxf2 {[%clk 0:01:04.3]}
20... Rxf2 {[%clk 0:02:02.8]} 21. Kxf2 {[%clk 0:01:04.6]} 21... Nxe5 {[%clk
0:02:03.1]} 22. dxe5 {[%clk 0:01:05.1]} 22... Qxe5 {[%clk 0:02:04]} 23. Nf3
{[%clk 0:00:50]} 23... Qg3+ {[%clk 0:01:58.1]} 24. Kf1 {[%clk 0:00:49.5]} 24...
Qd6 {[%clk 0:01:58.1]} 25. Kf2 {[%clk 0:00:41.7]} 25... Ng3 {[%clk 0:01:56.2]}
26. Qd3 {[%clk 0:00:33.8]} 26... c6 {[%clk 0:01:47.3]} 27. Kg1 {[%clk
0:00:30.9]} 27... Ne4 {[%clk 0:01:25.7]} 28. Nd2 {[%clk 0:00:31.2]} 28... Nxd2
{[%clk 0:01:11.3]} 29. Qxd2 {[%clk 0:00:31.2]} 29... Qe6 {[%clk 0:01:11.9]} 30.
Qd4 {[%clk 0:00:30.4]} 30... c5 {[%clk 0:01:12.3]} 31. Qd3 {[%clk 0:00:29.4]}
31... Qc6 {[%clk 0:01:04.6]} 32. Qf5 {[%clk 0:00:26.7]} 32... Qd6 {[%clk
0:01:02]} 33. Qc8+ {[%clk 0:00:24.5]} 33... Kf7 {[%clk 0:01:02]} 34. Qf5+ {[%clk
0:00:24.9]} 34... Ke7 {[%clk 0:01:02.2]} 35. e4 {[%clk 0:00:20.6]} 35... d4
{[%clk 0:00:59.6]} 36. e5 {[%clk 0:00:17]} 36... Qd5 {[%clk 0:00:41.5]} 37. cxd4
{[%clk 0:00:06.4]} 37... cxd4 {[%clk 0:00:42.4]} 38. Qf4 {[%clk 0:00:06]} 38...
d3 {[%clk 0:00:40.7]} 39. Qd2 {[%clk 0:00:06.7]} 39... Ke6 {[%clk 0:00:38.5]}
40. Kf1 {[%clk 0:00:06.3]} 40... Qd4 {[%clk 0:00:34.3]} 41. Ke1 {[%clk 0:00:02]}
41... Qg1# {[%clk 0:00:34]} 0-1

[Event "Early-Titled-Tuesday-Blitz-September-05-2023"]
[Site "Chess.com"]
[Date "2023.09.05"]
[Round "11"]
[White "Aleksandar-Topalov"]
[Black "only_strong_moves"]
[Result "0-1"]
[WhiteElo "2381"]
[BlackElo "2543"]
[TimeControl "180+1"]
[EndTime "10:05:24 PDT"]
[Termination "only_strong_moves won on time"]

1. b3 {[%clk 0:03:00.9]} 1... e5 {[%clk 0:02:59.6]} 2. Bb2 {[%clk 0:03:00.8]}
2... Nc6 {[%clk 0:03:00.3]} 3. c4 {[%clk 0:03:00.6]} 3... f5 {[%clk 0:02:59.6]}
4. e3 {[%clk 0:03:00.3]} 4... Nf6 {[%clk 0:02:57.7]} 5. Nf3 {[%clk 0:03:00.5]}
5... d6 {[%clk 0:02:57.3]} 6. d4 {[%clk 0:03:00.8]} 6... e4 {[%clk 0:02:57.9]}
7. d5 {[%clk 0:03:01.1]} 7... Nb8 {[%clk 0:02:55.1]} 8. Ng5 {[%clk 0:03:00.3]}
8... h6 {[%clk 0:02:46.3]} 9. Nh3 {[%clk 0:03:00.3]} 9... Nbd7 {[%clk
0:02:40.7]} 10. Be2 {[%clk 0:02:59.9]} 10... Ne5 {[%clk 0:02:40.7]} 11. Nf4
{[%clk 0:02:17.5]} 11... g5 {[%clk 0:02:39.4]} 12. Bh5+ {[%clk 0:02:16.6]} 12...
Nf7 {[%clk 0:02:22.3]} 13. Ne6 {[%clk 0:02:03.7]} 13... Qe7 {[%clk 0:02:14]} 14.
Nxc7+ {[%clk 0:01:59.6]} 14... Qxc7 {[%clk 0:02:13.5]} 15. Bxf6 {[%clk
0:01:59.5]} 15... Rg8 {[%clk 0:02:13]} 16. Nc3 {[%clk 0:01:48.8]} 16... Bg7
{[%clk 0:02:12.1]} 17. Qd4 {[%clk 0:01:44.1]} 17... Kf8 {[%clk 0:02:07.4]} 18.
h4 {[%clk 0:01:25.3]} 18... Ne5 {[%clk 0:01:59.4]} 19. Bxg7+ {[%clk 0:01:22.9]}
19... Qxg7 {[%clk 0:01:54.5]} 20. hxg5 {[%clk 0:01:21.6]} 20... hxg5 {[%clk
0:01:50.9]} 21. O-O-O {[%clk 0:01:15.2]} 21... Nd3+ {[%clk 0:01:50.1]} 22. Rxd3
{[%clk 0:01:13.7]} 22... exd3 {[%clk 0:01:49.5]} 23. Qxd3 {[%clk 0:01:13.8]}
23... Bd7 {[%clk 0:01:49.4]} 24. Kb1 {[%clk 0:00:57.7]} 24... Rh8 {[%clk
0:01:48]} 25. f3 {[%clk 0:00:50.7]} 25... Qf6 {[%clk 0:01:33.6]} 26. Ne2 {[%clk
0:00:43.6]} 26... Re8 {[%clk 0:01:30.3]} 27. Nd4 {[%clk 0:00:42]} 27... Qe5
{[%clk 0:01:26.5]} 28. Ne6+ {[%clk 0:00:25.1]} 28... Bxe6 {[%clk 0:01:24.6]} 29.
dxe6 {[%clk 0:00:25.5]} 29... Rxe6 {[%clk 0:01:25.5]} 30. g4 {[%clk 0:00:21.8]}
30... Ke7 {[%clk 0:01:19.3]} 31. Re1 {[%clk 0:00:19]} 31... f4 {[%clk
0:01:16.5]} 32. e4 {[%clk 0:00:18.2]} 32... b5 {[%clk 0:01:14.5]} 33. cxb5
{[%clk 0:00:16.3]} 33... Rc8 {[%clk 0:01:15.1]} 34. Rd1 {[%clk 0:00:13.2]} 34...
Rc3 {[%clk 0:01:10.7]} 35. Qd2 {[%clk 0:00:12.9]} 35... Rxf3 {[%clk 0:01:07.8]}
36. Qa5 {[%clk 0:00:09.8]} 36... Qxe4+ {[%clk 0:01:07.8]} 37. Ka1 {[%clk
0:00:09.1]} 37... Qe5+ {[%clk 0:01:06.2]} 38. Kb1 {[%clk 0:00:09.5]} 38... Qc5
{[%clk 0:01:02.1]} 39. Rc1 {[%clk 0:00:07.5]} 39... Qb6 {[%clk 0:00:46.4]} 40.
Rc7+ {[%clk 0:00:07.6]} 40... Kd8 {[%clk 0:00:45.5]} 41. Rxa7 {[%clk 0:00:07]}
41... Qxa5 {[%clk 0:00:45.3]} 42. Rxa5 {[%clk 0:00:06.8]} 42... Rf2 {[%clk
0:00:42.4]} 43. Ra8+ {[%clk 0:00:04.9]} 43... Kc7 {[%clk 0:00:42.7]} 44. Ra7+
{[%clk 0:00:02.4]} 44... Kb8 {[%clk 0:00:42.3]} 0-1

[Event "Early-Titled-Tuesday-Blitz-September-05-2023"]
[Site "Chess.com"]
[Date "2023.09.05"]
[Round "11"]
[White "DefiantChair"]
[Black "CristianS27"]
[Result "1-0"]
[WhiteElo "2646"]
[BlackElo "2523"]
[TimeControl "180+1"]
[EndTime "10:05:29 PDT"]
[Termination "DefiantChair won on time"]

1. e4 {[%clk 0:03:00.8]} 1... e5 {[%clk 0:02:54.2]} 2. Nf3 {[%clk 0:02:59.8]}
2... Nc6 {[%clk 0:02:54.5]} 3. Bb5 {[%clk 0:02:59.9]} 3... a6 {[%clk 0:02:54.4]}
4. Ba4 {[%clk 0:02:59.5]} 4... Nf6 {[%clk 0:02:54.8]} 5. O-O {[%clk 0:02:59.8]}
5... Nxe4 {[%clk 0:02:55.3]} 6. d4 {[%clk 0:02:58.7]} 6... exd4 {[%clk
0:02:56.2]} 7. Re1 {[%clk 0:02:57.9]} 7... d5 {[%clk 0:02:56.3]} 8. Nxd4 {[%clk
0:02:58]} 8... Bd6 {[%clk 0:02:56.8]} 9. Nxc6 {[%clk 0:02:52.4]} 9... Bxh2+
{[%clk 0:02:56.6]} 10. Kf1 {[%clk 0:02:45.5]} 10... Qh4 {[%clk 0:02:57.5]} 11.
Qf3 {[%clk 0:02:38.1]} 11... O-O {[%clk 0:02:54.3]} 12. Nd4 {[%clk 0:02:09.3]}
12... Bg4 {[%clk 0:02:52]} 13. Nf5 {[%clk 0:02:08.7]} 13... Qh5 {[%clk
0:02:43.8]} 14. Ne7+ {[%clk 0:02:08.3]} 14... Kh8 {[%clk 0:02:43.7]} 15. Qe3
{[%clk 0:01:56.4]} 15... Bf4 {[%clk 0:02:38.9]} 16. f3 {[%clk 0:01:55.5]} 16...
Bxe3 {[%clk 0:02:15.9]} 17. Bxe3 {[%clk 0:01:50.9]} 17... Bxf3 {[%clk
0:02:08.7]} 18. gxf3 {[%clk 0:01:50.5]} 18... Qxf3+ {[%clk 0:02:08]} 19. Kg1
{[%clk 0:01:51]} 19... Qg3+ {[%clk 0:02:03.1]} 20. Kf1 {[%clk 0:01:49.9]} 20...
Qf3+ {[%clk 0:01:31.4]} 21. Kg1 {[%clk 0:01:50]} 21... Ng3 {[%clk 0:01:32.3]}
22. Nc3 {[%clk 0:01:42.7]} 22... Qh1+ {[%clk 0:01:25.7]} 23. Kf2 {[%clk
0:01:42.6]} 23... Qh2+ {[%clk 0:01:26.6]} 24. Kf3 {[%clk 0:01:43.1]} 24... c6
{[%clk 0:01:09.7]} 25. Bf4 {[%clk 0:01:40.3]} 25... Qh4 {[%clk 0:01:05.4]} 26.
Bxg3 {[%clk 0:01:38.5]} 26... Qh5+ {[%clk 0:00:56.2]} 27. Kf2 {[%clk 0:01:34.5]}
27... Qg4 {[%clk 0:00:27.5]} 28. Re5 {[%clk 0:01:13.8]} 28... f5 {[%clk
0:00:20.9]} 29. Rh1 {[%clk 0:01:12.8]} 29... f4 {[%clk 0:00:14.7]} 30. Bh4
{[%clk 0:01:10.9]} 30... Rae8 {[%clk 0:00:10.3]} 31. Ncxd5 {[%clk 0:01:01.5]}
31... cxd5 {[%clk 0:00:09.3]} 32. Bxe8 {[%clk 0:01:01.2]} 32... Rxe8 {[%clk
0:00:08]} 33. Bg5 {[%clk 0:00:56.7]} 33... Qg3+ {[%clk 0:00:06.2]} 34. Kf1
{[%clk 0:00:55.1]} 34... Qf3+ {[%clk 0:00:04.6]} 35. Kg1 {[%clk 0:00:54.9]}
35... Qg3+ {[%clk 0:00:04.6]} 36. Kf1 {[%clk 0:00:55]} 36... h6 {[%clk
0:00:02.4]} 37. Bxh6 {[%clk 0:00:47.5]} 37... gxh6 {[%clk 0:00:02.6]} 38. Rxh6+
{[%clk 0:00:46]} 38... Kg7 {[%clk 0:00:03]} 39. Rg6+ {[%clk 0:00:46.2]} 39...
Qxg6 {[%clk 0:00:02.8]} 40. Nxg6 {[%clk 0:00:47.1]} 40... Rd8 {[%clk 0:00:01.5]}
41. Nxf4 {[%clk 0:00:46.6]} 41... Kf6 {[%clk 0:00:02]} 42. Rxd5 {[%clk
0:00:46.7]} 1-0

[Event "Early-Titled-Tuesday-Blitz-September-05-2023"]
[Site "Chess.com"]
[Date "2023.09.05"]
[Round "11"]
[White "Goryachkina"]
[Black "RobertoJBM"]
[Result "1/2-1/2"]
[WhiteElo "2670"]
[BlackElo "2797"]
[TimeControl "180+1"]
[EndTime "10:05:33 PDT"]
[Termination "Game drawn by repetition"]

1. e4 {[%clk 0:02:59.9]} 1... c6 {[%clk 0:03:00.1]} 2. d4 {[%clk 0:02:59.7]}
2... d5 {[%clk 0:03:01]} 3. exd5 {[%clk 0:03:00]} 3... cxd5 {[%clk 0:03:01.1]}
4. Bd3 {[%clk 0:03:00.2]} 4... Nc6 {[%clk 0:03:01.3]} 5. c3 {[%clk 0:03:00.5]}
5... g6 {[%clk 0:03:02.2]} 6. Nf3 {[%clk 0:02:59.6]} 6... Bf5 {[%clk 0:03:02.1]}
7. Be2 {[%clk 0:02:58]} 7... Bg7 {[%clk 0:02:58.1]} 8. O-O {[%clk 0:02:57.8]}
8... Nf6 {[%clk 0:02:55.7]} 9. h3 {[%clk 0:02:57.9]} 9... O-O {[%clk 0:02:55.7]}
10. Bf4 {[%clk 0:02:57.4]} 10... Rc8 {[%clk 0:02:54.2]} 11. Nbd2 {[%clk
0:02:55.7]} 11... Ne4 {[%clk 0:02:54.2]} 12. Re1 {[%clk 0:02:55]} 12... Nxd2
{[%clk 0:02:50.2]} 13. Qxd2 {[%clk 0:02:49.8]} 13... Bd7 {[%clk 0:02:36.5]} 14.
Bf1 {[%clk 0:02:45.5]} 14... Re8 {[%clk 0:02:34.3]} 15. Ne5 {[%clk 0:02:41.5]}
15... Nxe5 {[%clk 0:02:34]} 16. Bxe5 {[%clk 0:02:41.3]} 16... Bc6 {[%clk
0:02:30.7]} 17. Bxg7 {[%clk 0:02:31.5]} 17... Kxg7 {[%clk 0:02:31.6]} 18. h4
{[%clk 0:02:31.4]} 18... h5 {[%clk 0:02:31.5]} 19. Re5 {[%clk 0:02:27.9]} 19...
f6 {[%clk 0:02:22.9]} 20. Re3 {[%clk 0:02:26.8]} 20... e5 {[%clk 0:02:22.7]} 21.
dxe5 {[%clk 0:02:22.3]} 21... fxe5 {[%clk 0:02:22.4]} 22. Rae1 {[%clk
0:02:21.6]} 22... Qf6 {[%clk 0:02:12.1]} 23. Qe2 {[%clk 0:02:03.2]} 23... e4
{[%clk 0:01:56]} 24. g3 {[%clk 0:01:46.8]} 24... Rf8 {[%clk 0:01:49.4]} 25. Qd2
{[%clk 0:01:45.8]} 25... Rce8 {[%clk 0:01:43.2]} 26. Bg2 {[%clk 0:01:35.2]}
26... Rd8 {[%clk 0:01:41.5]} 27. Qd4 {[%clk 0:01:27.1]} 27... Qxd4 {[%clk
0:01:41.1]} 28. cxd4 {[%clk 0:01:28]} 28... Rd7 {[%clk 0:01:34.8]} 29. f3 {[%clk
0:01:26.5]} 29... Rf6 {[%clk 0:01:16.5]} 30. fxe4 {[%clk 0:01:16.3]} 30... dxe4
{[%clk 0:01:17.4]} 31. Bxe4 {[%clk 0:01:15.6]} 31... Rxd4 {[%clk 0:01:17.3]} 32.
Bxc6 {[%clk 0:01:15.5]} 32... Rxc6 {[%clk 0:01:17.1]} 33. Re7+ {[%clk
0:01:15.5]} 33... Kh6 {[%clk 0:01:17.5]} 34. R1e2 {[%clk 0:01:00.7]} 34... Rb6
{[%clk 0:01:03.7]} 35. Rf2 {[%clk 0:00:55.4]} 35... g5 {[%clk 0:01:00.7]} 36.
hxg5+ {[%clk 0:00:46.7]} 36... Kxg5 {[%clk 0:01:01.6]} 37. Kh2 {[%clk
0:00:43.5]} 37... h4 {[%clk 0:00:55.8]} 38. Kh3 {[%clk 0:00:29.9]} 38... hxg3
{[%clk 0:00:55.8]} 39. Rg7+ {[%clk 0:00:29.5]} 39... Rg6 {[%clk 0:00:52.3]} 40.
Rxg6+ {[%clk 0:00:29.7]} 40... Kxg6 {[%clk 0:00:53.2]} 41. Kxg3 {[%clk
0:00:30.2]} 41... Rd6 {[%clk 0:00:49.9]} 42. Kf3 {[%clk 0:00:24.7]} 42... Rf6+
{[%clk 0:00:48.1]} 43. Ke3 {[%clk 0:00:25.2]} 43... Rxf2 {[%clk 0:00:49]} 44.
Kxf2 {[%clk 0:00:25.7]} 44... Kf5 {[%clk 0:00:49.6]} 45. Ke3 {[%clk 0:00:26.1]}
45... Ke5 {[%clk 0:00:50.5]} 46. Kd3 {[%clk 0:00:25.8]} 46... Kd5 {[%clk
0:00:50.6]} 47. Kc3 {[%clk 0:00:26]} 47... Kc5 {[%clk 0:00:50.9]} 48. Kd3 {[%clk
0:00:22.9]} 48... Kd5 {[%clk 0:00:41.2]} 49. Kc3 {[%clk 0:00:23.1]} 49... Kc5
{[%clk 0:00:41]} 50. Kd3 {[%clk 0:00:23.5]} 50... Kd5 {[%clk 0:00:34.7]} 1/2-1/2

[Event "Early-Titled-Tuesday-Blitz-September-05-2023"]
[Site "Chess.com"]
[Date "2023.09.05"]
[Round "11"]
[White "sokidze"]
[Black "TregubovP"]
[Result "1-0"]
[WhiteElo "2775"]
[BlackElo "2654"]
[TimeControl "180+1"]
[EndTime "10:05:33 PDT"]
[Termination "sokidze won by resignation"]

1. e4 {[%clk 0:03:00.9]} 1... c5 {[%clk 0:02:59.4]} 2. Nf3 {[%clk 0:03:00.8]}
2... e6 {[%clk 0:02:59.3]} 3. d4 {[%clk 0:03:00.6]} 3... cxd4 {[%clk 0:02:59.9]}
4. Nxd4 {[%clk 0:03:01.1]} 4... Nf6 {[%clk 0:03:00]} 5. Nc3 {[%clk 0:03:01.3]}
5... Nc6 {[%clk 0:03:00.7]} 6. Nxc6 {[%clk 0:02:59.3]} 6... bxc6 {[%clk
0:03:00.9]} 7. e5 {[%clk 0:03:00]} 7... Nd5 {[%clk 0:03:01.1]} 8. Ne4 {[%clk
0:03:00.7]} 8... Bb7 {[%clk 0:03:01.8]} 9. Be2 {[%clk 0:03:00.4]} 9... c5 {[%clk
0:03:01.3]} 10. O-O {[%clk 0:03:00.6]} 10... Qc7 {[%clk 0:03:01.9]} 11. Nd6+
{[%clk 0:03:00.2]} 11... Bxd6 {[%clk 0:03:02.4]} 12. exd6 {[%clk 0:03:01.1]}
12... Qc6 {[%clk 0:03:03]} 13. f3 {[%clk 0:03:01.2]} 13... c4 {[%clk 0:02:58.9]}
14. Qd4 {[%clk 0:02:59.9]} 14... O-O {[%clk 0:02:56.6]} 15. Bxc4 {[%clk
0:02:59]} 15... Qxd6 {[%clk 0:02:56]} 16. b3 {[%clk 0:02:59.5]} 16... Rfc8
{[%clk 0:02:52.3]} 17. Bb2 {[%clk 0:02:56.5]} 17... Qc5 {[%clk 0:02:51]} 18.
Qxc5 {[%clk 0:02:42.3]} 18... Rxc5 {[%clk 0:02:50.5]} 19. Bd4 {[%clk 0:02:42.9]}
19... Rcc8 {[%clk 0:02:45.3]} 20. a4 {[%clk 0:02:29.2]} 20... Nb4 {[%clk
0:02:40.7]} 21. Rac1 {[%clk 0:01:56.5]} 21... Bd5 {[%clk 0:02:40.5]} 22. Bxd5
{[%clk 0:01:51.4]} 22... Nxd5 {[%clk 0:02:40.5]} 23. Rfd1 {[%clk 0:01:47.6]}
23... Nb4 {[%clk 0:02:31.7]} 24. c3 {[%clk 0:01:43.9]} 24... Nc6 {[%clk
0:02:28]} 25. Be3 {[%clk 0:01:34.2]} 25... d5 {[%clk 0:02:26.1]} 26. c4 {[%clk
0:01:34.6]} 26... Nb4 {[%clk 0:01:55]} 27. cxd5 {[%clk 0:01:26]} 27... Rxc1
{[%clk 0:01:53.6]} 28. Rxc1 {[%clk 0:01:26.2]} 28... Nxd5 {[%clk 0:01:54]} 29.
Bxa7 {[%clk 0:01:25.6]} 29... f6 {[%clk 0:01:52.6]} 30. Bc5 {[%clk 0:01:09.3]}
30... Rb8 {[%clk 0:01:43.3]} 31. Rb1 {[%clk 0:01:02.9]} 31... Nc3 {[%clk
0:01:42.4]} 32. Ra1 {[%clk 0:00:55.4]} 32... Rxb3 {[%clk 0:01:35.4]} 33. a5
{[%clk 0:00:55.5]} 33... Rb5 {[%clk 0:01:29.5]} 34. a6 {[%clk 0:00:43.3]} 34...
Rxc5 {[%clk 0:01:29]} 35. a7 {[%clk 0:00:42.7]} 35... Rc8 {[%clk 0:01:29.5]} 36.
a8=Q {[%clk 0:00:41.5]} 36... Rxa8 {[%clk 0:01:29.7]} 37. Rxa8+ {[%clk
0:00:42.1]} 37... Kf7 {[%clk 0:01:30.1]} 38. Kf2 {[%clk 0:00:41.1]} 38... h5
{[%clk 0:01:30]} 39. h4 {[%clk 0:00:40.1]} 39... Kg6 {[%clk 0:01:29.2]} 40. Ra6
{[%clk 0:00:38.9]} 40... e5 {[%clk 0:01:29.3]} 41. Ra5 {[%clk 0:00:36.3]} 41...
Kf5 {[%clk 0:01:26.5]} 42. Rc5 {[%clk 0:00:25]} 42... Na4 {[%clk 0:01:25.8]} 43.
Rc6 {[%clk 0:00:25.4]} 43... g5 {[%clk 0:01:17.3]} 44. g3 {[%clk 0:00:22]} 44...
gxh4 {[%clk 0:00:45]} 45. gxh4 {[%clk 0:00:22.9]} 45... e4 {[%clk 0:00:43]} 46.
fxe4+ {[%clk 0:00:21.6]} 46... Kg4 {[%clk 0:00:37.7]} 47. Rxf6 {[%clk
0:00:19.6]} 47... Nc5 {[%clk 0:00:34.1]} 48. Ke3 {[%clk 0:00:18.4]} 48... Kxh4
{[%clk 0:00:34.2]} 49. Kd4 {[%clk 0:00:17.5]} 49... Nd7 {[%clk 0:00:32.3]} 50.
Rf7 {[%clk 0:00:17.1]} 1-0